bitfinex-derivatives/quotes_ETHF0:USTF0_20240818
["timestamp","ask_amount","ask_price","bid_price","bid_amount"]
[1724016614983,0.00854237,2656.3,2656.2,11.15936745]
[1724016615187,0.00854237,2656.3,2656.2,11.15936783]
[1724016615487,0.00854237,2656.3,2656.2,13.13397962]
[1724016616089,0.00854237,2656.3,2656.2,16.89853848]
[1724016616487,0.00854237,2656.3,2656.2,13.13397962]
[1724016618490,0.00854237,2656.3,2656.2,11.15936783]
[1724016618884,0.00854237,2656.3,2656.2,13.13397962]
[1724016619406,0.00854237,2656.3,2656.2,16.29927321]
[1724016619580,0.00854237,2656.3,2656.2,16.8984586]
[1724016620888,0.00854237,2656.3,2656.2,16.89844441]
[1724016622398,0.00854237,2656.3,2656.2,14.92383262]
[1724016628001,0.00854237,2656.3,2656.2,17.3901286]
[1724016628497,0.00854237,2656.3,2656.2,14.92383262]
[1724016630198,0.00854237,2656.3,2656.2,14.92375426]
[1724016632609,0.00854237,2656.3,2656.2,14.32456887]
[1724016633312,0.00854237,2656.3,2656.2,14.92374721]
[1724016634406,0.00854237,2656.3,2656.2,14.92374609]
[1724016634706,0.00854237,2656.3,2656.2,14.92380362]
[1724016637196,0.00854237,2656.3,2656.2,18.68860362]
[1724016637595,0.00854237,2656.3,2656.2,21.1548996]
[1724016638007,0.00854237,2656.3,2656.2,18.68860362]
[1724016638210,0.00854237,2656.3,2656.2,18.68860077]
[1724016638705,0.00854237,2656.3,2656.2,21.15489675]
[1724016638908,0.00854237,2656.3,2656.2,21.15489717]
[1724016639302,0.00854237,2656.3,2656.2,21.1546641]
[1724016639995,0.00854237,2656.3,2656.2,18.68836812]
[1724016640399,0.00854237,2656.3,2656.2,21.1546641]
[1724016640600,1.46505978,2656.6,2656.2,21.1546641]
[1724016640601,1.46505978,2656.6,2656.5,1.88173]
[1724016640801,1.46505978,2656.7,2656.6,1.88165]
[1724016641011,1.46505978,2656.7,2656.6,6.79323255]
[1724016641510,1.46937118,2656.7,2656.6,6.79321105]
[1724016641803,0.0043114,2656.7,2656.6,6.79321105]
[1724016642109,0.0043114,2656.7,2656.6,6.79281146]
[1724016642401,0.0043114,2656.7,2656.6,5.3542744]
[1724016642604,0.0043114,2656.7,2656.6,5.3752744]
[1724016644201,0.0043114,2656.7,2656.6,7.2569244]
[1724016644402,0.0043114,2656.7,2656.6,9.23190661]
[1724016644602,0.0043114,2656.7,2656.6,7.2569244]
[1724016645611,0.0043114,2656.7,2656.6,7.25690153]
[1724016646119,0.0043114,2656.7,2656.6,7.25689996]
[1724016646298,0.0043114,2656.7,2656.6,9.23188217]
[1724016647216,0.0043114,2656.7,2656.6,8.63275332]
[1724016647506,0.0043114,2656.7,2656.6,9.23187317]
[1724016648210,0.0043114,2656.7,2656.6,7.25689096]
[1724016649613,0.0043114,2656.7,2656.6,7.55699359]
[1724016650002,0.0043114,2656.7,2656.6,7.55699347]
[1724016651315,0.0043114,2656.7,2656.6,15.40835639]
[1724016653208,0.0043114,2656.7,2656.6,17.3833386]
[1724016653402,0.0043114,2656.7,2656.6,21.14680481]
[1724016654214,0.0043114,2656.7,2656.6,21.14679162]
[1724016654603,0.0043114,2656.7,2656.6,17.38303874]
[1724016654804,0.00369575,2656.9,2656.8,3.76302]
[1724016655006,0.3515,2657.1,2656.8,10.49125907]
[1724016655205,0.3515,2657.1,2657.0,3.8162277]
[1724016655920,0.35633588,2657.1,2657.0,3.82076659]
[1724016656110,0.35633588,2657.1,2657.0,5.70254967]
[1724016656306,0.35633588,2657.1,2657.0,3.82076659]
[1724016658715,0.35633588,2657.1,2657.0,5.70247927]
[1724016659212,0.35633588,2657.1,2657.0,3.82076659]
[1724016659607,0.00483588,2657.1,2657.0,3.82076659]
[1724016659808,1.46505978,2657.7,2657.4,1.88103]
[1724016660123,0.3569,2657.5,2657.4,1.88103]
[1724016660314,0.3569,2657.5,2657.4,2.07319657]
[1724016660712,0.00266604,2657.5,2657.4,2.07319657]
[1724016660914,0.00266604,2657.5,2657.4,6.82080616]
[1724016661216,0.00266604,2657.5,2657.4,4.9394168]
[1724016661439,0.00266604,2657.5,2657.4,7.31443466]
[1724016661815,0.00266604,2657.5,2657.4,6.82015384]
[1724016662016,0.00266604,2657.5,2657.4,7.76915384]
[1724016662427,0.00266604,2657.5,2657.4,5.88779231]
[1724016663626,0.00266604,2657.5,2657.4,4.90328657]
[1724016665019,0.00266604,2657.5,2657.4,8.66648657]
[1724016665227,0.00266604,2657.5,2657.4,12.67628782]
[1724016667628,0.00266604,2657.5,2657.4,12.97339521]
[1724016668219,0.00266604,2657.5,2657.4,12.99439521]
[1724016668827,0.6976,2657.8,2657.7,1.88088]
[1724016669020,0.6976,2657.8,2657.7,6.03768]
[1724016669927,0.7016387,2657.8,2657.7,6.03768]
[1724016671231,0.7016387,2657.8,2657.7,6.07998]
[1724016671828,0.0040387,2657.8,2657.7,6.07998]
[1724016672035,0.0040387,2657.8,2657.7,6.43338]
[1724016674818,0.0040387,2657.8,2657.7,8.31426]
[1724016675223,0.0040387,2657.8,2657.7,8.61238994]
[1724016675429,0.0040387,2657.8,2657.7,12.37478994]
[1724016676429,0.3369,2658.3,2658.2,1.88052]
[1724016676631,0.3369,2658.3,2658.2,2.82952]
[1724016677532,0.34075052,2658.3,2658.2,2.82952]
[1724016678220,0.00385052,2658.3,2658.2,2.82952]
[1724016678818,0.00385052,2658.3,2658.2,3.20102]
[1724016681527,0.00385052,2658.3,2658.1,0.3714]
[1724016681528,3.76545052,2658.3,2658.1,1.88056]
[1724016681727,4.11555052,2658.3,2658.2,0.949]
[1724016682034,3.7616,2658.2,2658.0,1.88631014]
[1724016682245,3.7616,2658.2,2658.1,0.949]
[1724016682246,3.7624,2658.2,2658.1,0.949]
[1724016688638,3.7624,2658.2,2658.1,2.82959]
[1724016689940,3.7624,2658.2,2658.1,2.87189]
[1724016690442,3.7624,2658.2,2658.1,0.9913]
[1724016690642,3.7624,2658.2,2658.1,2.87189]
[1724016692040,3.7624,2658.2,2658.1,0.9913]
[1724016692340,3.7624,2658.2,2658.1,2.87189]
[1724016694936,3.7624,2658.2,2658.1,2.89289]
[1724016696642,0.35395052,2658.3,2658.2,1.88052]
[1724016696846,4.11555052,2658.3,2658.2,1.88052]
[1724016697048,4.46015052,2658.3,2658.2,1.88052]
[1724016703350,0.00385052,2658.3,2658.2,1.88052]
[1724016703655,0.00385052,2658.3,2658.2,2.24612]
[1724016705739,3.76545052,2658.3,2658.2,2.24612]
[1724016706546,3.76545052,2658.3,2658.2,1.88052]
[1724016707854,3.76545052,2658.3,2658.2,1.92282]
[1724016710555,3.76545052,2658.3,2658.2,1.94382]
[1724016712053,5.2305103,2658.3,2658.2,1.94382]
[1724016715656,5.23307342,2658.3,2658.2,1.94382]
[1724016716151,3.76545052,2658.3,2658.2,1.94382]
[1724016718561,5.71661427,2658.3,2658.2,1.94382]
[1724016720360,5.71661427,2658.3,2658.2,2.92832574]
[1724016720864,5.71661427,2658.3,2658.2,3.52724869]
[1724016721173,5.71661427,2658.3,2658.2,2.92832574]
[1724016721174,3.76545052,2658.3,2658.2,2.92832574]
[1724016721565,5.71661427,2658.3,2658.2,2.92832574]
[1724016726870,5.71661427,2658.3,2658.2,3.52725011]
[1724016727064,3.76545052,2658.3,2658.2,1.94382]
[1724016727466,4.12895052,2658.3,2658.2,1.94382]
[1724016735377,6.08649015,2658.3,2658.2,1.94382]
[1724016738475,4.12895052,2658.3,2658.2,1.94382]
[1724016738671,6.08655336,2658.3,2658.2,1.94382]
[1724016741775,1.96145336,2658.3,2658.2,3.82434]
[1724016741977,1.4684195,2658.6,2658.5,1.88031]
[1724016742182,1.4684195,2658.6,2658.5,5.34701264]
[1724016742485,1.4684195,2658.7,2658.6,1.88024]
[1724016742686,1.4684195,2658.7,2658.6,3.81562952]
[1724016742876,1.4684195,2658.7,2658.6,6.2952559]
[1724016743180,1.4684195,2658.7,2658.6,5.69641058]
[1724016743181,1.47247314,2658.7,2658.6,5.69641058]
[1724016743485,0.00405364,2658.7,2658.6,3.81562952]
[1724016743983,0.00405364,2658.7,2658.6,3.87882952]
[1724016747771,0.00405364,2658.7,2658.6,4.18238807]
[1724016749672,0.00405364,2658.7,2658.6,3.19599855]
[1724016753992,0.00405364,2658.7,2658.6,2.89244]
[1724016757586,0.00405364,2658.7,2658.6,8.53428]
[1724016759193,0.00405364,2658.7,2658.6,11.74208]
[1724016777799,2.1784195,2659.3,2659.2,1.87981]
[1724016778102,0.71,2659.3,2659.2,2.82881]
[1724016778504,0.71,2659.3,2659.2,3.02015149]
[1724016778505,4.4708,2659.3,2659.2,3.02015149]
[1724016779000,0.71352266,2659.3,2659.2,3.02370983]
[1724016779812,0.71352266,2659.3,2659.2,3.08690983]
[1724016780103,0.71352266,2659.3,2659.2,3.43380983]
[1724016780408,0.00352266,2659.3,2659.2,3.43380983]
[1724016782806,0.00352266,2659.3,2659.2,2.89556834]
[1724016783101,4.12782266,2659.3,2659.2,0.06675834]
[1724016783301,4.12782266,2659.3,2659.2,2.89556834]
[1724016783798,4.12782266,2659.3,2659.2,1.01575834]
[1724016784102,4.12782266,2659.3,2659.2,2.89556834]
[1724016784308,4.12782266,2659.3,2659.2,0.06675834]
[1724016784507,5.59624216,2659.3,2659.2,1.01575834]
[1724016785211,4.12782266,2659.3,2659.2,1.01575834]
[1724016785508,5.59624216,2659.3,2659.2,1.01575834]
[1724016786313,4.12782266,2659.3,2659.2,1.01575834]
[1724016787397,6.0854255,2659.3,2659.2,1.01575834]
[1724016787812,6.0854255,2659.3,2659.2,0.06675834]
[1724016787998,1.88006,2658.9,2658.7,0.949]
[1724016788198,1.88019,2658.7,2658.5,0.949]
[1724016788503,2.31849019,2658.6,2658.5,0.949]
[1724016788700,6.08009019,2658.6,2658.5,0.949]
[1724016789003,11.08009019,2658.6,2658.5,0.95297608]
[1724016790303,9.1235,2658.6,2658.5,0.95297608]
[1724016791208,9.4827,2658.6,2658.5,0.95297608]
[1724016792106,4.4827,2658.6,2658.5,0.00397608]
[1724016792304,10.94911195,2658.6,2658.5,0.00397608]
[1724016792609,9.4827,2658.6,2658.5,0.00397608]
[1724016793008,11.36294,2658.6,2658.5,0.00397608]
[1724016793201,10.94865664,2658.6,2658.5,0.00397608]
[1724016795312,10.94865664,2658.6,2658.5,1.88428608]
[1724016795505,9.4827,2658.6,2658.5,1.88428608]
[1724016795809,7.31194,2658.6,2658.5,0.00397608]
[1724016796000,7.31194,2658.6,2658.0,0.37385014]
[1724016796001,15.59609019,2658.6,2658.0,0.00565014]
[1724016796201,1.88053,2658.2,2658.0,1.88631014]
[1724016796496,1.88053,2658.2,2658.0,2.83531014]
[1724016796497,1.047,2658.1,2658.0,2.83531014]
[1724016796699,4.8094,2658.1,2658.0,2.83531014]
[1724016796902,4.8094,2658.1,2658.0,0.9592321]
[1724016797107,6.27480629,2658.1,2658.0,0.9592321]
[1724016797315,4.8094,2658.1,2658.0,2.8398921]
[1724016803937,4.8094,2658.1,2658.0,0.9592321]
[1724016804310,9.8094,2658.1,2658.0,0.0102321]
[1724016804517,1.88077,2657.9,2657.7,0.3537]
[1724016804715,3.2078,2658.0,2657.7,0.949]
[1724016805019,5.08851,2658.0,2657.7,2.82985]
[1724016805211,8.85091,2658.0,2657.7,2.82985]
[1724016805517,5.64314,2657.9,2657.7,2.83344033]
[1724016805815,3.7624,2657.8,2657.7,1.88444033]
[1724016806017,5.6432,2657.8,2657.7,0.00359033]
[1724016806207,10.6432,2657.8,2657.7,0.00359033]
[1724016806412,11.5922,2657.8,2657.7,0.00359033]
[1724016814815,6.5922,2657.8,2657.7,0.00359033]
[1724016815017,11.5922,2657.8,2657.7,0.00359033]
[1724016818919,6.5922,2657.8,2657.7,0.00359033]
[1724016819117,11.5922,2657.8,2657.7,0.00359033]
[1724016821420,6.5922,2657.8,2657.7,0.00359033]
[1724016821622,11.5922,2657.8,2657.7,0.00359033]
[1724016822031,6.5922,2657.8,2657.7,0.00359033]
[1724016823221,6.9291,2657.8,2657.7,0.00359033]
[1724016824134,6.9291,2657.8,2657.7,0.34449033]
[1724016827829,10.1369,2657.8,2657.7,0.34449033]
[1724016828415,10.1369,2657.8,2657.7,0.00359033]
[1724016829146,10.1369,2657.8,2657.4,0.3509]
[1724016829147,1.88102,2657.5,2657.4,0.3509]
[1724016829427,2.83002,2657.5,2657.4,0.3509]
[1724016830020,2.83002,2657.5,2657.4,0.35422993]
[1724016834328,4.29542629,2657.5,2657.4,0.35422993]
[1724016836929,8.05862629,2657.5,2657.4,0.35422993]
[1724016837134,10.42811506,2657.5,2657.4,0.35422993]
[1724016837433,10.77211506,2657.5,2657.4,0.35422993]
[1724016838631,8.89109506,2657.5,2657.4,0.35422993]
[1724016839224,6.93722,2657.5,2657.4,0.35422993]
[1724016839428,8.88997842,2657.5,2657.4,0.00332993]
[1724016839730,8.88999068,2657.5,2657.4,0.00332993]
[1724016840239,6.93722,2657.5,2657.4,0.00332993]
[1724016840937,12.59132961,2657.5,2657.4,0.00332993]
[1724016841337,14.47234961,2657.5,2657.4,0.00332993]
[1724016841641,12.59132961,2657.5,2657.4,0.00332993]
[1724016842831,12.59132961,2657.5,2657.2,0.35055014]
[1724016842832,1.88116,2657.3,2657.2,0.35055014]
[1724016843036,4.78438875,2657.3,2657.2,0.35055014]
[1724016843239,8.54758875,2657.3,2657.2,0.35055014]
[1724016843826,8.54758875,2657.3,2657.2,0.35528553]
[1724016844033,8.55079034,2657.3,2657.2,0.35528553]
[1724016844746,7.60179034,2657.3,2657.2,0.35528553]
[1724016844936,8.55079034,2657.3,2657.2,0.35528553]
[1724016845338,7.60179034,2657.3,2657.2,0.35528553]
[1724016845643,8.55079034,2657.3,2657.2,0.35528553]
[1724016847346,6.59656159,2657.3,2657.2,0.35528553]
[1724016847533,8.55188377,2657.3,2657.2,0.35528553]
[1724016848238,6.59656159,2657.3,2657.2,0.35528553]
[1724016850335,9.0428712,2657.3,2657.2,0.35528553]
[1724016857444,5.2796712,2657.3,2657.2,0.35528553]
[1724016860347,4.3306712,2657.3,2657.2,0.35528553]
[1724016860647,5.2796712,2657.3,2657.2,0.35528553]
[1724016863338,4.3306712,2657.3,2657.2,0.35528553]
[1724016863543,5.2796712,2657.3,2657.2,0.35528553]
[1724016865645,2.83336159,2657.3,2657.2,0.35528553]
[1724016866042,5.28056697,2657.3,2657.2,0.35528553]
[1724016866453,2.83336159,2657.3,2657.2,0.35528553]
[1724016866849,5.28065418,2657.3,2657.2,0.35528553]
[1724016867043,1.88436159,2657.3,2657.2,0.35528553]
[1724016867248,2.83336159,2657.3,2657.2,0.35528553]
[1724016878854,5.7755877,2657.3,2657.2,0.35528553]
[1724016880259,2.83336159,2657.3,2657.2,0.35528553]
[1724016880461,5.7755877,2657.3,2657.2,0.35528553]
[1724016892478,5.7755877,2657.3,2657.2,2.23651553]
[1724016892668,2.83336159,2657.3,2657.2,0.35528553]
[1724016893181,0.95220159,2657.3,2657.2,2.23651553]
[1724016894777,2.83336159,2657.3,2657.2,2.23651553]
[1724016898470,2.83336159,2657.3,2657.2,0.35528553]
[1724016899379,5.7755877,2657.3,2657.2,0.35528553]
[1724016900179,2.83336159,2657.3,2657.2,0.35528553]
[1724016902478,5.7755877,2657.3,2657.2,0.35528553]
[1724016902873,2.83336159,2657.3,2657.2,0.35528553]
[1724016903267,5.7755877,2657.3,2657.2,0.35528553]
[1724016904995,2.83336159,2657.3,2657.2,0.35528553]
[1724016908382,2.83336159,2657.3,2657.2,0.01038553]
[1724016908578,7.6567477,2657.3,2657.2,0.01038553]
[1724016908769,12.1472477,2657.3,2657.2,0.01038553]
[1724016913601,15.3550477,2657.3,2657.2,0.01038553]
[1724016920092,12.1472477,2657.3,2657.2,0.01038553]
[1724016920300,15.3550477,2657.3,2657.2,0.01038553]
[1724016923510,11.5918477,2657.3,2657.2,0.01038553]
[1724016930614,8.3840477,2657.3,2657.2,0.01038553]
[1724016930813,11.5918477,2657.3,2657.2,0.01038553]
[1724016931318,10.8645477,2657.3,2657.2,0.01038553]
[1724016933915,7.6567477,2657.3,2657.2,0.01038553]
[1724016934109,10.8645477,2657.3,2657.2,0.01038553]
[1724016936524,7.6567477,2657.3,2657.2,0.01038553]
[1724016936721,10.8645477,2657.3,2657.2,0.01038553]
[1724016938911,7.6567477,2657.3,2657.2,0.01038553]
[1724016939117,10.8645477,2657.3,2657.2,0.01038553]
[1724016941716,7.6567477,2657.3,2657.2,0.01038553]
[1724016942426,10.8645477,2657.3,2657.2,0.01038553]
[1724016943026,7.6567477,2657.3,2657.2,0.01038553]
[1724016943332,10.8645477,2657.3,2657.2,0.01038553]
[1724016946524,10.8645477,2657.3,2657.2,0.36328553]
[1724016946728,7.6567477,2657.3,2657.2,0.36328553]
[1724016947528,10.8645477,2657.3,2657.2,0.36328553]
[1724016948031,10.86183709,2657.3,2657.2,0.36328553]
[1724016948929,10.86200284,2657.3,2657.2,0.36328553]
[1724016949435,7.92232159,2657.3,2657.2,0.36328553]
[1724016950522,11.35470779,2657.3,2657.2,0.36328553]
[1724016950832,7.92232159,2657.3,2657.2,0.36328553]
[1724016951235,7.92232159,2657.3,2657.2,0.01038553]
[1724016951236,8.28362159,2657.3,2657.2,0.01038553]
[1724016951538,11.71600779,2657.3,2657.2,0.01038553]
[1724016951724,8.28362159,2657.3,2657.2,0.01038553]
[1724016952522,5.42642159,2657.3,2657.2,0.01038553]
[1724016952718,8.63422159,2657.3,2657.2,0.01038553]
[1724016953532,12.06660779,2657.3,2657.2,0.01038553]
[1724016956841,8.85880779,2657.3,2657.2,0.01038553]
[1724016957040,12.06660779,2657.3,2657.2,0.01038553]
[1724016958939,8.85880779,2657.3,2657.2,0.01038553]
[1724016959147,12.06660779,2657.3,2657.2,0.01038553]
[1724016963349,15.82980779,2657.3,2657.2,0.01038553]
[1724016969754,12.39742159,2657.3,2657.2,0.01038553]
[1724016970052,15.82980779,2657.3,2657.2,0.01038553]
[1724016972357,12.39742159,2657.3,2657.2,0.01038553]
[1724016972658,15.82980779,2657.3,2657.2,0.01038553]
[1724016976548,12.06660779,2657.3,2657.2,0.01038553]
[1724016977858,8.85880779,2657.3,2657.2,0.01038553]
[1724016978155,12.06660779,2657.3,2657.2,0.01038553]
[1724016978555,8.63422159,2657.3,2657.2,0.01038553]
[1724016978750,11.71600779,2657.3,2657.2,0.01038553]
[1724016979150,8.28362159,2657.3,2657.2,0.34718553]
[1724016979552,11.71600779,2657.3,2657.2,0.34718553]
[1724016979954,8.28362159,2657.3,2657.2,0.34718553]
[1724016980346,11.71600779,2657.3,2657.2,0.34718553]
[1724016980660,11.35470779,2657.3,2657.2,0.34718553]
[1724016981357,7.92232159,2657.3,2657.2,0.34718553]
[1724016981751,11.35470779,2657.3,2657.2,0.34718553]
[1724016982762,7.92232159,2657.3,2657.2,0.34718553]
[1724016983057,11.35470779,2657.3,2657.2,0.34718553]
[1724016984654,7.92232159,2657.3,2657.2,0.34718553]
[1724016985054,11.35470779,2657.3,2657.2,0.34718553]
[1724016987067,8.14690779,2657.3,2657.2,0.34718553]
[1724016987361,11.35470779,2657.3,2657.2,0.34718553]
[1724016987763,8.14690779,2657.3,2657.2,0.34718553]
[1724016988058,11.35470779,2657.3,2657.2,0.34718553]
[1724016988560,8.14690779,2657.3,2657.2,0.34718553]
[1724016989158,11.35470779,2657.3,2657.2,0.34718553]
[1724016992661,8.14690779,2657.3,2657.2,0.34718553]
[1724016992859,11.35470779,2657.3,2657.2,0.34718553]
[1724016993760,7.92232159,2657.3,2657.2,0.34718553]
[1724016993958,11.35470779,2657.3,2657.2,0.34718553]
[1724016997562,11.35470779,2657.3,2657.2,0.01038553]
[1724017003673,9.47354779,2657.3,2657.2,0.01038553]
[1724017004674,6.26574779,2657.3,2657.2,0.01038553]
[1724017004979,9.47354779,2657.3,2657.2,0.01038553]
[1724017005180,6.26574779,2657.3,2657.2,0.01038553]
[1724017005376,9.47354779,2657.3,2657.2,0.01038553]
[1724017007679,6.26574779,2657.3,2657.2,0.01038553]
[1724017007880,9.47354779,2657.3,2657.2,0.01038553]
[1724017014591,6.26574779,2657.3,2657.2,0.01038553]
[1724017014885,9.47354779,2657.3,2657.2,0.01038553]
[1724017021591,6.26574779,2657.3,2657.2,0.01038553]
[1724017021792,9.47354779,2657.3,2657.2,0.01038553]
[1724017023791,10.18384779,2657.3,2657.2,0.01038553]
[1724017030592,6.75146159,2657.3,2657.2,0.01038553]
[1724017032091,3.54366159,2657.3,2657.2,0.01038553]
[1724017032291,6.75146159,2657.3,2657.2,0.01038553]
[1724017034102,10.18473273,2657.3,2657.2,0.01038553]
[1724017034490,6.75146159,2657.3,2657.2,0.01038553]
[1724017035393,10.18662195,2657.3,2657.2,0.01038553]
[1724017036001,6.97882195,2657.3,2657.2,0.01038553]
[1724017036296,10.18662195,2657.3,2657.2,0.01038553]
[1724017040896,6.97882195,2657.3,2657.2,0.01038553]
[1724017041199,10.18662195,2657.3,2657.2,0.01038553]
[1724017041904,6.97882195,2657.3,2657.2,0.01038553]
[1724017042296,10.18662195,2657.3,2657.2,0.01038553]
[1724017042691,6.97882195,2657.3,2657.2,0.01038553]
[1724017043097,10.18662195,2657.3,2657.2,0.01038553]
[1724017044294,6.97882195,2657.3,2657.2,0.01038553]
[1724017044495,10.18662195,2657.3,2657.2,0.01038553]
[1724017045392,10.18662195,2657.3,2656.6,0.98361904]
[1724017045393,1.8813,2657.1,2656.6,0.98361904]
[1724017045594,1.88151,2656.8,2656.7,0.7203]
[1724017045800,8.03393097,2656.8,2656.6,0.3707]
[1724017046008,1.88173,2656.5,2656.4,0.7203]
[1724017046205,5.08953,2656.5,2656.4,0.7203]
[1724017046404,5.08953,2656.5,2656.4,0.72347295]
[1724017047297,7.92026,2656.5,2656.4,0.00317295]
[1724017047495,11.57478866,2656.5,2656.4,0.00317295]
[1724017047806,8.63076,2656.5,2656.4,0.00317295]
[1724017048506,11.5694734,2656.5,2656.4,0.00317295]
[1724017048702,11.5694734,2656.5,2656.2,0.00565014]
[1724017048703,1.88187,2656.3,2656.2,0.00565014]
[1724017048905,2.83087,2656.3,2656.2,0.00565014]
[1724017049495,4.71274,2656.3,2656.2,0.00565014]
[1724017049700,4.71274,2656.3,2656.2,0.00928663]
[1724017050310,5.05284,2656.3,2656.2,0.00928663]
[1724017052312,7.49850785,2656.3,2656.2,0.00928663]
[1724017052610,5.05284,2656.3,2656.2,0.00928663]
[1724017054102,12.02544,2656.3,2656.2,0.00928663]
[1724017055309,14.46962276,2656.3,2656.2,0.00928663]
[1724017055506,14.46959049,2656.3,2656.2,0.00928663]
[1724017056307,1.88201,2656.1,2656.0,0.7103]
[1724017056498,4.78571919,2656.1,2656.0,0.7103]
[1724017057302,2.83101,2656.1,2656.0,0.71364596]
[1724017058109,4.78571919,2656.1,2656.0,0.71364596]
[1724017058309,2.83101,2656.1,2656.0,0.71364596]
[1724017060205,4.29603603,2656.1,2656.0,0.71364596]
[1724017060912,4.29583348,2656.1,2656.0,0.71364596]
[1724017061306,2.83101,2656.1,2656.0,0.71364596]
[1724017061710,4.78571919,2656.1,2656.0,0.71364596]
[1724017062513,1.88208,2656.0,2655.9,0.3707]
[1724017062713,1.88215,2655.9,2655.8,0.00565014]
[1724017062901,3.19435,2655.9,2655.8,0.00565014]
[1724017063709,3.19435,2655.9,2655.8,0.00994138]
[1724017065014,4.6578671,2655.9,2655.8,0.00994138]
[1724017069211,7.8656671,2655.9,2655.8,0.00994138]
[1724017073810,7.86440867,2655.9,2655.8,0.00994138]
[1724017074746,7.86443997,2655.9,2655.8,0.00994138]
[1724017075316,6.40215,2655.9,2655.8,0.00994138]
[1724017075810,8.2843,2655.9,2655.8,0.00994138]
[1724017077608,8.2843,2655.9,2655.7,0.7358]
[1724017077609,3.76444,2655.8,2655.7,0.7358]
[1724017077823,1.88229,2655.7,2655.6,0.3383]
[1724017078008,2.83129,2655.7,2655.6,0.3383]
[1724017078606,2.83129,2655.7,2655.6,0.34209331]
[1724017079211,4.29341834,2655.7,2655.6,0.34209331]
[1724017081021,1.88243,2655.5,2655.4,0.00565014]
[1724017081317,6.03923,2655.5,2655.4,0.00565014]
[1724017081927,6.03923,2655.5,2655.4,0.00975314]
[1724017082421,9.38378834,2655.5,2655.4,0.00975314]
[1724017084324,9.38378834,2655.5,2654.7,4.176]
[1724017084325,1.88276,2655.1,2655.0,0.6911]
[1724017084523,2.83176,2655.1,2655.0,0.6911]
[1724017085242,2.83629764,2655.1,2655.0,0.69394857]
[1724017085760,4.71905764,2655.1,2655.0,0.00284857]
[1724017085928,6.18172369,2655.1,2655.0,0.00284857]
[1724017088425,4.71905764,2655.1,2655.0,0.00284857]
[1724017088922,6.18191635,2655.1,2655.0,0.00284857]
[1724017089326,4.71905764,2655.1,2655.0,0.00284857]
[1724017089916,7.92685764,2655.1,2655.0,0.00284857]
[1724017090323,9.88156683,2655.1,2655.0,0.00284857]
[1724017090921,7.92685764,2655.1,2655.0,0.00284857]
[1724017091318,9.88156683,2655.1,2655.0,0.00284857]
[1724017092523,6.67376683,2655.1,2655.0,0.00284857]
[1724017092916,9.88156683,2655.1,2655.0,0.00284857]
[1724017093912,7.92685764,2655.1,2655.0,0.00284857]
[1724017094226,9.88030573,2655.1,2655.0,0.00284857]
[1724017094828,7.92685764,2655.1,2655.0,0.00284857]
[1724017095224,9.88032098,2655.1,2655.0,0.00284857]
[1724017095418,7.92685764,2655.1,2655.0,0.00284857]
[1724017095817,9.88021399,2655.1,2655.0,0.00284857]
[1724017096126,7.92685764,2655.1,2655.0,0.00284857]
[1724017099138,1.88286,2654.9,2654.4,1.88318]
[1724017099423,0.949,2654.5,2654.4,1.88318]
[1724017099630,0.949,2654.5,2654.4,5.65038]
[1724017100129,0.949,2654.5,2654.4,5.65409894]
[1724017100516,2.83214,2654.5,2654.4,3.77091894]
[1724017100919,2.83214,2654.5,2654.4,5.65412894]
[1724017102528,2.83214,2654.5,2654.4,3.77091894]
[1724017103423,2.83214,2654.5,2654.4,5.65412894]
[1724017104527,1.88314,2654.5,2654.4,5.65412894]
[1724017104731,1.46467147,2654.7,2654.4,5.65412894]
[1724017104732,1.883,2654.7,2654.6,1.88305]
[1724017104935,2.832,2654.7,2654.6,1.88305]
[1724017105120,2.832,2654.7,2654.6,5.65025]
[1724017105834,2.832,2654.7,2654.6,3.7672]
[1724017106033,2.832,2654.7,2654.6,5.65027]
[1724017106224,0.949,2654.7,2654.6,5.65027]
[1724017107825,0.949,2654.7,2654.6,3.7672]
[1724017108332,0.949,2654.7,2654.6,4.1109]
[1724017108333,2.41367147,2654.7,2654.6,4.1109]
[1724017108633,2.41367147,2654.7,2654.6,5.99397]
[1724017109024,2.41367147,2654.7,2654.6,4.1109]
[1724017109235,2.41367147,2654.7,2654.6,5.99397]
[1724017109725,2.41367147,2654.7,2654.6,4.1109]
[1724017112029,4.29667147,2654.7,2654.6,4.1109]
[1724017113838,2.41367147,2654.7,2654.6,4.1109]
[1724017114040,4.29667147,2654.7,2654.6,4.1109]
[1724017114345,4.66267147,2654.7,2654.6,4.1109]
[1724017115241,5.00967147,2654.7,2654.6,3.7672]
[1724017115443,3.545,2654.7,2654.6,3.7672]
[1724017117341,5.4978953,2654.7,2654.6,3.7672]
[1724017118536,5.4978953,2654.7,2654.5,1.88314]
[1724017118841,1.46605606,2654.6,2654.5,1.88314]
[1724017119040,3.34912606,2654.6,2654.4,2.24127894]
[1724017119242,0.949,2654.5,2654.4,6.00847894]
[1724017119940,2.83214,2654.5,2654.4,6.00847894]
[1724017120239,4.29819606,2654.5,2654.4,6.00847894]
[1724017121654,4.29819606,2654.5,2654.4,4.12531894]
[1724017122240,4.29819606,2654.5,2654.4,3.77091894]
[1724017122443,3.17714,2654.5,2654.4,3.77091894]
[1724017122948,3.17714,2654.5,2654.4,4.11431894]
[1724017123440,5.1300353,2654.5,2654.4,4.11431894]
[1724017123668,5.1300353,2654.5,2654.4,0.00371894]
[1724017127849,5.62129049,2654.5,2654.4,0.00371894]
[1724017128252,3.17714,2654.5,2654.4,0.00371894]
[1724017129137,5.06028,2654.5,2654.4,0.00371894]
[1724017129749,8.82748,2654.5,2654.4,0.00371894]
[1724017130152,11.7661934,2654.5,2654.4,0.00371894]
[1724017130349,8.82748,2654.5,2654.4,0.00371894]
[1724017130553,1.8835,2654.0,2653.8,3.5639]
[1724017130740,0.949,2653.9,2653.8,3.5639]
[1724017131147,2.83257,2653.9,2653.8,7.3319]
[1724017131548,4.2994387,2653.9,2653.8,9.21862849]
[1724017131747,4.2994387,2653.9,2653.8,7.33498849]
[1724017132059,2.83257,2653.9,2653.8,9.21862849]
[1724017133557,4.29846962,2653.9,2653.8,9.21862849]
[1724017133758,4.29846962,2653.9,2653.8,6.01082849]
[1724017134347,4.29846962,2653.9,2653.8,4.12718849]
[1724017134554,2.83257,2653.9,2653.8,4.12718849]
[1724017135556,2.83257,2653.9,2653.8,6.01082849]
[1724017135963,2.83257,2653.9,2653.8,4.12718849]
[1724017139455,4.29731416,2653.9,2653.8,4.12718849]
[1724017139754,2.83257,2653.9,2653.8,4.12718849]
[1724017140255,2.83257,2653.9,2653.8,3.77108849]
[1724017140459,7.99671103,2653.9,2653.8,3.77108849]
[1724017143254,6.04037,2653.9,2653.8,3.77108849]